[Event "Late-Titled-Tuesday-Blitz-June-18-2024"]
[Site "Chess.com"]
[Date "2024.06.18"]
[Round "8"]
[White "kalinchick"]
[Black "simaopdias"]
[Result "1-0"]
[WhiteElo "2372"]
[BlackElo "2206"]
[TimeControl "180+1"]
[EndTime "15:29:29 PDT"]
[Termination "kalinchick won by resignation"]

1. d4 {[%clk 0:03:00.2]} 1... Nf6 {[%clk 0:02:59.1]} 2. c4 {[%clk 0:03:00.3]}
2... e6 {[%clk 0:02:59.7]} 3. Nc3 {[%clk 0:02:59.8]} 3... b6 {[%clk 0:03:00.2]}
4. Qc2 {[%clk 0:02:58.1]} 4... d5 {[%clk 0:02:58.9]} 5. Bg5 {[%clk 0:02:52.4]}
5... Be7 {[%clk 0:02:59.2]} 6. e3 {[%clk 0:02:52]} 6... O-O {[%clk 0:02:57.9]}
7. Nf3 {[%clk 0:02:50.5]} 7... Bb7 {[%clk 0:02:58.1]} 8. cxd5 {[%clk 0:02:48.3]}
8... Nxd5 {[%clk 0:02:57.6]} 9. Bxe7 {[%clk 0:02:45.7]} 9... Qxe7 {[%clk
0:02:54.7]} 10. Be2 {[%clk 0:02:41.9]} 10... Nd7 {[%clk 0:02:52.2]} 11. O-O
{[%clk 0:02:39]} 11... Nb4 {[%clk 0:02:51.1]} 12. Qa4 {[%clk 0:02:22.9]} 12...
c5 {[%clk 0:02:47.8]} 13. dxc5 {[%clk 0:02:13.9]} 13... Bc6 {[%clk 0:02:48]} 14.
Qxb4 {[%clk 0:02:11.6]} 14... Nxc5 {[%clk 0:02:45.4]} 15. Nd4 {[%clk 0:02:06.6]}
15... Bb7 {[%clk 0:02:40.8]} 16. Bf3 {[%clk 0:02:06.6]} 16... Bxf3 {[%clk
0:02:38.1]} 17. Nxf3 {[%clk 0:02:05.6]} 17... Qf6 {[%clk 0:02:36]} 18. Rfd1
{[%clk 0:02:02.9]} 18... h6 {[%clk 0:02:34.6]} 19. Qd4 {[%clk 0:01:45.3]} 19...
Qe7 {[%clk 0:02:32.7]} 20. b4 {[%clk 0:01:45.3]} 20... Na6 {[%clk 0:02:29]} 21.
a3 {[%clk 0:01:43.4]} 21... Rfd8 {[%clk 0:02:28.6]} 22. Qc4 {[%clk 0:01:42.2]}
22... Qb7 {[%clk 0:02:23.6]} 23. h3 {[%clk 0:01:40.4]} 23... Rac8 {[%clk
0:02:22.1]} 24. Rxd8+ {[%clk 0:01:37.5]} 24... Rxd8 {[%clk 0:02:22.1]} 25. Rd1
{[%clk 0:01:35.7]} 25... Rc8 {[%clk 0:02:22.1]} 26. Qd4 {[%clk 0:01:35.1]} 26...
Nb8 {[%clk 0:02:16.8]} 27. Nb5 {[%clk 0:01:33.7]} 27... Qa6 {[%clk 0:02:00.3]}
28. Qd3 {[%clk 0:01:15.6]} 28... Nc6 {[%clk 0:01:51.9]} 29. Nd6 {[%clk
0:01:15.7]} 29... Qxd3 {[%clk 0:01:48.2]} 30. Rxd3 {[%clk 0:01:16.6]} 30... Rd8
{[%clk 0:01:47.5]} 31. Rd2 {[%clk 0:01:15.3]} 31... a5 {[%clk 0:01:43.2]} 32. b5
{[%clk 0:01:12.3]} 32... Ne7 {[%clk 0:01:41.2]} 33. Nc4 {[%clk 0:01:11.9]} 33...
Rb8 {[%clk 0:01:38.9]} 34. Rd6 {[%clk 0:01:08.1]} 34... Nd5 {[%clk 0:01:37.1]}
35. e4 {[%clk 0:01:07.8]} 35... Nc3 {[%clk 0:01:36.6]} 36. Rxb6 {[%clk 0:01:01]}
36... Rxb6 {[%clk 0:01:13.4]} 37. Nxb6 {[%clk 0:01:01.9]} 37... Nxb5 {[%clk
0:01:12.9]} 38. a4 {[%clk 0:01:01.5]} 38... Nc3 {[%clk 0:01:13.1]} 39. Nd2
{[%clk 0:01:01.7]} 39... f5 {[%clk 0:01:06.4]} 40. exf5 {[%clk 0:01:01.4]} 40...
exf5 {[%clk 0:01:07.3]} 41. Ndc4 {[%clk 0:01:01.9]} 41... Kf7 {[%clk 0:01:01.5]}
42. Nxa5 {[%clk 0:01:01.8]} 42... Kf6 {[%clk 0:01:01.7]} 43. Nb3 {[%clk
0:00:58.6]} 43... Ke5 {[%clk 0:00:58.2]} 44. a5 {[%clk 0:00:57]} 44... Nb5
{[%clk 0:00:56.9]} 45. Kf1 {[%clk 0:00:51.7]} 45... g5 {[%clk 0:00:55.8]} 46.
Ke2 {[%clk 0:00:51.5]} 46... Ke4 {[%clk 0:00:56.1]} 47. Nc4 {[%clk 0:00:48]}
47... h5 {[%clk 0:00:51.8]} 48. Ncd2+ {[%clk 0:00:45.3]} 48... Ke5 {[%clk
0:00:50.7]} 49. Kd3 {[%clk 0:00:44]} 49... h4 {[%clk 0:00:48]} 50. Nf3+ {[%clk
0:00:40.5]} 50... Kf4 {[%clk 0:00:46]} 51. Nfd4 {[%clk 0:00:36.7]} 51... Nc7
{[%clk 0:00:39.8]} 52. Nc5 {[%clk 0:00:34.6]} 52... Nd5 {[%clk 0:00:34.3]} 53.
Nde6+ {[%clk 0:00:33.8]} 53... Ke5 {[%clk 0:00:32.7]} 54. Nxg5 {[%clk
0:00:30.7]} 54... Kd6 {[%clk 0:00:31.8]} 55. Kc4 {[%clk 0:00:29.5]} 55... Nf4
{[%clk 0:00:31.6]} 56. a6 {[%clk 0:00:24.6]} 56... Kc7 {[%clk 0:00:27.5]} 57. a7
{[%clk 0:00:24.5]} 1-0

[Event "Late-Titled-Tuesday-Blitz-June-18-2024"]
[Site "Chess.com"]
[Date "2024.06.18"]
[Round "8"]
[White "betta2004"]
[Black "Maus7"]
[Result "0-1"]
[WhiteElo "2480"]
[BlackElo "2623"]
[TimeControl "180+1"]
[EndTime "15:29:30 PDT"]
[Termination "Maus7 won by resignation"]

1. Nf3 {[%clk 0:03:00.9]} 1... Nf6 {[%clk 0:02:57.9]} 2. e3 {[%clk 0:02:59.5]}
2... g6 {[%clk 0:02:57.6]} 3. b3 {[%clk 0:02:59.5]} 3... Bg7 {[%clk 0:02:54]} 4.
Bb2 {[%clk 0:02:59.9]} 4... O-O {[%clk 0:02:52.8]} 5. d4 {[%clk 0:02:58.4]} 5...
d6 {[%clk 0:02:52.7]} 6. Nbd2 {[%clk 0:02:57.7]} 6... Nbd7 {[%clk 0:02:49.1]} 7.
Bd3 {[%clk 0:02:57.3]} 7... c6 {[%clk 0:02:42.8]} 8. c4 {[%clk 0:02:49]} 8... e5
{[%clk 0:02:38.7]} 9. dxe5 {[%clk 0:02:48.7]} 9... dxe5 {[%clk 0:02:38.8]} 10.
Qc2 {[%clk 0:02:45]} 10... Qe7 {[%clk 0:02:37.9]} 11. O-O-O {[%clk 0:02:37.1]}
11... Nc5 {[%clk 0:02:35.3]} 12. Be2 {[%clk 0:02:36.8]} 12... a5 {[%clk
0:02:34.1]} 13. Bxe5 {[%clk 0:02:25.6]} 13... Bf5 {[%clk 0:02:31.1]} 14. Qb2
{[%clk 0:02:24.5]} 14... Bd3 {[%clk 0:02:21.2]} 15. Nf1 {[%clk 0:02:00.9]} 15...
Rfd8 {[%clk 0:02:00.7]} 16. Ng3 {[%clk 0:01:59.3]} 16... a4 {[%clk 0:01:57.5]}
17. b4 {[%clk 0:01:39.8]} 17... a3 {[%clk 0:01:57.4]} 18. Qc3 {[%clk 0:01:39.1]}
18... Nce4 {[%clk 0:01:44.9]} 19. Bxd3 {[%clk 0:01:04.3]} 19... Nxc3 {[%clk
0:01:44.4]} 20. Bxc3 {[%clk 0:01:05.2]} 20... Ng4 {[%clk 0:01:41.3]} 21. Bxg7
{[%clk 0:00:59.4]} 21... Kxg7 {[%clk 0:01:36.8]} 22. Nd4 {[%clk 0:00:59.1]}
22... Qxb4 {[%clk 0:01:33.6]} 23. Rd2 {[%clk 0:00:59.3]} 23... Qc3+ {[%clk
0:01:20.2]} 24. Bc2 {[%clk 0:00:56.1]} 24... Qb2+ {[%clk 0:01:16.1]} 25. Kd1
{[%clk 0:00:56]} 25... Qa1+ {[%clk 0:01:15.5]} 26. Ke2 {[%clk 0:00:55.1]} 26...
Qc3 {[%clk 0:01:11.7]} 27. Bd3 {[%clk 0:00:54.2]} 27... Ne5 {[%clk 0:01:07.6]}
28. Ne4 {[%clk 0:00:53.9]} 28... Qa5 {[%clk 0:01:07.8]} 29. c5 {[%clk
0:00:47.6]} 29... Nxd3 {[%clk 0:01:03]} 30. Rxd3 {[%clk 0:00:48.5]} 30... Rd5
{[%clk 0:00:51.4]} 31. Rc1 {[%clk 0:00:43.5]} 31... Rb8 {[%clk 0:00:44.8]} 32.
g4 {[%clk 0:00:34.3]} 32... h5 {[%clk 0:00:37.1]} 33. h3 {[%clk 0:00:32.1]}
33... Qa6 {[%clk 0:00:35.1]} 34. Kd2 {[%clk 0:00:17.5]} 34... hxg4 {[%clk
0:00:34.4]} 35. hxg4 {[%clk 0:00:18.4]} 35... b6 {[%clk 0:00:26.1]} 36. Rcc3
{[%clk 0:00:09.2]} 36... bxc5 {[%clk 0:00:25.3]} 37. Rxa3 {[%clk 0:00:07.1]}
37... Rb2+ {[%clk 0:00:23.1]} 38. Kc1 {[%clk 0:00:06]} 38... Qb7 {[%clk
0:00:21.3]} 39. Rab3 {[%clk 0:00:03.2]} 39... Rxb3 {[%clk 0:00:20.6]} 40. Rxb3
{[%clk 0:00:04.1]} 40... Qe7 {[%clk 0:00:18.6]} 41. Nc3 {[%clk 0:00:01.1]} 41...
cxd4 {[%clk 0:00:18.7]} 42. Nxd5 {[%clk 0:00:01.5]} 42... cxd5 {[%clk
0:00:19.4]} 43. exd4 {[%clk 0:00:02.4]} 43... Qe1+ {[%clk 0:00:18.4]} 44. Kb2
{[%clk 0:00:02.6]} 44... Qxf2+ {[%clk 0:00:18.6]} 45. Kc3 {[%clk 0:00:03.2]}
45... Qe3+ {[%clk 0:00:18.9]} 46. Kb4 {[%clk 0:00:03.7]} 46... Qxd4+ {[%clk
0:00:19.2]} 47. Kb5 {[%clk 0:00:04.3]} 47... Qc4+ {[%clk 0:00:18.8]} 48. Ka5
{[%clk 0:00:04.5]} 48... Qc5+ {[%clk 0:00:19]} 49. Rb5 {[%clk 0:00:04.8]} 49...
Qa3+ {[%clk 0:00:18.5]} 50. Kb6 {[%clk 0:00:05.2]} 50... Qxa2 {[%clk 0:00:18.9]}
51. Rxd5 {[%clk 0:00:05.9]} 51... Qxd5 {[%clk 0:00:18.9]} 0-1

[Event "Late-Titled-Tuesday-Blitz-June-18-2024"]
[Site "Chess.com"]
[Date "2024.06.18"]
[Round "8"]
[White "Bryanl106"]
[Black "tptagain"]
[Result "0-1"]
[WhiteElo "2749"]
[BlackElo "2947"]
[TimeControl "180+1"]
[EndTime "15:29:32 PDT"]
[Termination "tptagain won by resignation"]

1. e4 {[%clk 0:03:00]} 1... c5 {[%clk 0:03:00.1]} 2. Nf3 {[%clk 0:03:00.1]} 2...
Nc6 {[%clk 0:03:00.7]} 3. d4 {[%clk 0:02:59.7]} 3... cxd4 {[%clk 0:03:01.6]} 4.
Nxd4 {[%clk 0:03:00.5]} 4... e5 {[%clk 0:03:02.1]} 5. Nb5 {[%clk 0:03:00.8]}
5... d6 {[%clk 0:03:02.6]} 6. N1c3 {[%clk 0:03:01.2]} 6... a6 {[%clk 0:03:02.7]}
7. Na3 {[%clk 0:03:01.7]} 7... Be6 {[%clk 0:03:02.6]} 8. Nc4 {[%clk 0:03:01.9]}
8... Rb8 {[%clk 0:03:03.2]} 9. Ne3 {[%clk 0:03:02.2]} 9... Nf6 {[%clk
0:03:00.3]} 10. g3 {[%clk 0:03:02]} 10... g6 {[%clk 0:02:59.6]} 11. Bg2 {[%clk
0:03:02.1]} 11... Bh6 {[%clk 0:02:58.5]} 12. O-O {[%clk 0:03:00.1]} 12... O-O
{[%clk 0:02:58.2]} 13. Ned5 {[%clk 0:02:57.5]} 13... Bxc1 {[%clk 0:02:57.3]} 14.
Rxc1 {[%clk 0:02:55.3]} 14... Nd4 {[%clk 0:02:50.4]} 15. Qd3 {[%clk 0:02:47.5]}
15... Nxd5 {[%clk 0:02:47.3]} 16. Nxd5 {[%clk 0:02:44.6]} 16... Bxd5 {[%clk
0:02:46.7]} 17. exd5 {[%clk 0:02:45.5]} 17... Qb6 {[%clk 0:02:34.6]} 18. c3
{[%clk 0:02:44]} 18... Nf5 {[%clk 0:02:34.4]} 19. Qd2 {[%clk 0:02:34.4]} 19...
a5 {[%clk 0:02:30.4]} 20. h4 {[%clk 0:02:32.5]} 20... Kg7 {[%clk 0:02:17.4]} 21.
Kh2 {[%clk 0:02:29.8]} 21... Rbe8 {[%clk 0:02:10.7]} 22. Bh3 {[%clk 0:02:19.8]}
22... Nh6 {[%clk 0:02:10.2]} 23. b3 {[%clk 0:02:14.7]} 23... f5 {[%clk
0:02:07.9]} 24. Qe3 {[%clk 0:02:14.8]} 24... Qxe3 {[%clk 0:02:01.9]} 25. fxe3
{[%clk 0:02:15.7]} 25... e4 {[%clk 0:01:59.6]} 26. c4 {[%clk 0:02:13]} 26... b6
{[%clk 0:01:59.2]} 27. Kg1 {[%clk 0:02:09.2]} 27... Kf6 {[%clk 0:01:56.2]} 28.
a3 {[%clk 0:02:06]} 28... Ke5 {[%clk 0:01:55.6]} 29. Rfd1 {[%clk 0:02:04.1]}
29... Ng4 {[%clk 0:01:49.5]} 30. Rc3 {[%clk 0:01:39.2]} 30... Nf6 {[%clk
0:01:33.1]} 31. Bf1 {[%clk 0:01:35.9]} 31... Ra8 {[%clk 0:01:32.2]} 32. Be2
{[%clk 0:01:33]} 32... Rfc8 {[%clk 0:01:31.9]} 33. Rcc1 {[%clk 0:01:30.1]} 33...
Rc7 {[%clk 0:01:26.6]} 34. Kf2 {[%clk 0:01:28.5]} 34... Rac8 {[%clk 0:01:25.9]}
35. Ke1 {[%clk 0:01:28.5]} 35... b5 {[%clk 0:01:24.7]} 36. Kd2 {[%clk
0:01:28.9]} 36... b4 {[%clk 0:01:17.7]} 37. axb4 {[%clk 0:01:27.7]} 37... axb4
{[%clk 0:01:18.6]} 38. Ra1 {[%clk 0:01:28.2]} 38... Nd7 {[%clk 0:01:19.1]} 39.
Ra4 {[%clk 0:01:28.3]} 39... Rb8 {[%clk 0:01:19.1]} 40. Kc2 {[%clk 0:01:27.5]}
40... Nc5 {[%clk 0:01:19.2]} 41. Ra5 {[%clk 0:01:27]} 41... h6 {[%clk
0:01:15.3]} 42. Rda1 {[%clk 0:01:26.6]} 42... g5 {[%clk 0:01:14.2]} 43. Ra8
{[%clk 0:01:19.3]} 43... Rxa8 {[%clk 0:01:11.2]} 44. Rxa8 {[%clk 0:01:20.2]}
44... gxh4 {[%clk 0:00:59.2]} 45. gxh4 {[%clk 0:01:17.1]} 45... Rg7 {[%clk
0:00:59.8]} 46. Re8+ {[%clk 0:01:16.5]} 46... Kf6 {[%clk 0:01:00.3]} 47. Rf8+
{[%clk 0:01:17.1]} 47... Ke7 {[%clk 0:01:01]} 48. Rxf5 {[%clk 0:01:16.2]} 48...
Rg2 {[%clk 0:01:01.9]} 49. Kd1 {[%clk 0:01:13.1]} 49... Nxb3 {[%clk 0:01:02.1]}
50. Rh5 {[%clk 0:01:04.6]} 50... Nc5 {[%clk 0:01:02.2]} 51. Rxh6 {[%clk
0:01:05.2]} 51... b3 {[%clk 0:01:02.6]} 52. Rh7+ {[%clk 0:01:05]} 52... Kf6
{[%clk 0:01:01.2]} 53. Rh6+ {[%clk 0:00:59.4]} 53... Kg7 {[%clk 0:00:38.9]} 54.
Rxd6 {[%clk 0:00:58.7]} 54... Rg1+ {[%clk 0:00:39]} 55. Kd2 {[%clk 0:00:57.1]}
55... b2 {[%clk 0:00:39.9]} 56. Rb6 {[%clk 0:00:52.9]} 56... b1=Q {[%clk
0:00:36.1]} 57. Rxb1 {[%clk 0:00:53.1]} 57... Rxb1 {[%clk 0:00:36.9]} 58. Kc3
{[%clk 0:00:54]} 58... Re1 {[%clk 0:00:36]} 59. Bg4 {[%clk 0:00:53.2]} 59...
Rxe3+ {[%clk 0:00:34.9]} 60. Kd4 {[%clk 0:00:52.4]} 60... Rg3 {[%clk 0:00:35.2]}
61. Bf5 {[%clk 0:00:52.7]} 61... e3 {[%clk 0:00:34.5]} 62. Bd3 {[%clk 0:00:39]}
62... Nxd3 {[%clk 0:00:34.3]} 63. Kxd3 {[%clk 0:00:39.9]} 63... Kf6 {[%clk
0:00:34.8]} 64. c5 {[%clk 0:00:40]} 64... Ke5 {[%clk 0:00:35]} 65. d6 {[%clk
0:00:39.7]} 65... Kd5 {[%clk 0:00:29.7]} 66. d7 {[%clk 0:00:39.6]} 66... Rg8
{[%clk 0:00:30.1]} 67. Kxe3 {[%clk 0:00:39.9]} 67... Kxc5 {[%clk 0:00:30.5]} 68.
Kf4 {[%clk 0:00:40.5]} 68... Kd6 {[%clk 0:00:30.8]} 69. Kf5 {[%clk 0:00:41.2]}
69... Kxd7 {[%clk 0:00:22.2]} 70. Kf6 {[%clk 0:00:41.1]} 70... Rh8 {[%clk
0:00:22]} 71. Kg5 {[%clk 0:00:41.6]} 71... Ke8 {[%clk 0:00:22.5]} 72. h5 {[%clk
0:00:42.5]} 72... Kf7 {[%clk 0:00:23.1]} 73. h6 {[%clk 0:00:43.4]} 73... Rg8+
{[%clk 0:00:23.3]} 74. Kh5 {[%clk 0:00:44]} 74... Rg1 {[%clk 0:00:22.8]} 75. h7
{[%clk 0:00:44.9]} 75... Rh1+ {[%clk 0:00:23]} 76. Kg5 {[%clk 0:00:45.8]} 76...
Rxh7 {[%clk 0:00:23.4]} 0-1

[Event "Late-Titled-Tuesday-Blitz-June-18-2024"]
[Site "Chess.com"]
[Date "2024.06.18"]
[Round "8"]
[White "ahkashefi2800"]
[Black "Rutricks"]
[Result "0-1"]
[WhiteElo "2637"]
[BlackElo "2819"]
[TimeControl "180+1"]
[EndTime "15:29:36 PDT"]
[Termination "Rutricks won on time"]

1. d4 {[%clk 0:02:59.1]} 1... g6 {[%clk 0:02:57.9]} 2. c4 {[%clk 0:02:59.1]}
2... Bg7 {[%clk 0:02:57.7]} 3. Nc3 {[%clk 0:02:59]} 3... d6 {[%clk 0:02:58.3]}
4. g3 {[%clk 0:02:58.4]} 4... Nd7 {[%clk 0:02:59]} 5. Bg2 {[%clk 0:02:59]} 5...
Ngf6 {[%clk 0:02:59.9]} 6. Nf3 {[%clk 0:02:58.8]} 6... O-O {[%clk 0:03:00.8]} 7.
O-O {[%clk 0:02:59.3]} 7... c5 {[%clk 0:03:01.4]} 8. b3 {[%clk 0:02:57.4]} 8...
Rb8 {[%clk 0:03:01.8]} 9. Bb2 {[%clk 0:02:57]} 9... a6 {[%clk 0:03:02.4]} 10.
Qd2 {[%clk 0:02:49.5]} 10... b5 {[%clk 0:03:03]} 11. cxb5 {[%clk 0:02:49.3]}
11... axb5 {[%clk 0:03:03.9]} 12. a4 {[%clk 0:02:46.9]} 12... bxa4 {[%clk
0:02:57.4]} 13. bxa4 {[%clk 0:02:46.8]} 13... Nb6 {[%clk 0:02:55.5]} 14. Qc2
{[%clk 0:02:29.1]} 14... Nbd5 {[%clk 0:02:22.2]} 15. dxc5 {[%clk 0:02:24.4]}
15... Rxb2 {[%clk 0:02:20.6]} 16. Qxb2 {[%clk 0:02:23.8]} 16... Ne4 {[%clk
0:02:21.2]} 17. Qc2 {[%clk 0:02:00.7]} 17... Nexc3 {[%clk 0:02:18.7]} 18. cxd6
{[%clk 0:01:55.4]} 18... Bf5 {[%clk 0:02:17]} 19. Qd2 {[%clk 0:01:40.5]} 19...
Qxd6 {[%clk 0:02:17.1]} 20. a5 {[%clk 0:01:35.6]} 20... Ne4 {[%clk 0:01:54.6]}
21. Qa2 {[%clk 0:01:28.8]} 21... Bxa1 {[%clk 0:01:50.4]} 22. Rxa1 {[%clk
0:01:27.7]} 22... Ndc3 {[%clk 0:01:50.9]} 23. Qa3 {[%clk 0:00:36.3]} 23... Nxe2+
{[%clk 0:01:50.5]} 24. Kf1 {[%clk 0:00:33.2]} 24... Qa6 {[%clk 0:01:50.9]} 25.
Qxe7 {[%clk 0:00:30]} 25... N2xg3+ {[%clk 0:01:35.3]} 26. Kg1 {[%clk 0:00:27.6]}
26... Ne2+ {[%clk 0:01:35.8]} 27. Kf1 {[%clk 0:00:26.4]} 27... Nf4+ {[%clk
0:01:32.6]} 28. Kg1 {[%clk 0:00:23]} 28... Nxg2 {[%clk 0:01:28.1]} 29. Kxg2
{[%clk 0:00:22.6]} 29... Qf6 {[%clk 0:01:20.4]} 30. Qxf6 {[%clk 0:00:15.5]}
30... Nxf6 {[%clk 0:01:21.3]} 31. Nd4 {[%clk 0:00:15.9]} 31... Be4+ {[%clk
0:01:21]} 32. f3 {[%clk 0:00:16.4]} 32... Rd8 {[%clk 0:01:21.5]} 33. Ra4 {[%clk
0:00:07.3]} 33... Bb7 {[%clk 0:01:15.2]} 34. a6 {[%clk 0:00:07.5]} 34... Bxa6
{[%clk 0:01:15.6]} 35. Rxa6 {[%clk 0:00:07.1]} 35... Nh5 {[%clk 0:01:13.9]} 36.
Ne2 {[%clk 0:00:04.1]} 36... Rd2 {[%clk 0:01:14.1]} 37. Kf1 {[%clk 0:00:04.5]}
37... Ng7 {[%clk 0:01:12.9]} 38. Ra8+ {[%clk 0:00:04]} 38... Ne8 {[%clk
0:01:11.1]} 39. Rxe8+ {[%clk 0:00:04.5]} 39... Kg7 {[%clk 0:01:12]} 40. Re3
{[%clk 0:00:05]} 40... h5 {[%clk 0:01:12.3]} 41. Ke1 {[%clk 0:00:05.6]} 41...
Ra2 {[%clk 0:01:12.5]} 42. Kf2 {[%clk 0:00:06.2]} 42... Kf6 {[%clk 0:01:13.2]}
43. h4 {[%clk 0:00:06.7]} 43... Kf5 {[%clk 0:01:13.7]} 44. Re4 {[%clk
0:00:07.2]} 44... f6 {[%clk 0:01:13.7]} 45. Ke3 {[%clk 0:00:06.7]} 45... g5
{[%clk 0:01:14.6]} 46. Nd4+ {[%clk 0:00:05.1]} 46... Kg6 {[%clk 0:01:15.1]} 47.
hxg5 {[%clk 0:00:05.2]} 47... fxg5 {[%clk 0:01:16]} 48. Re6+ {[%clk 0:00:05]}
48... Kg7 {[%clk 0:01:16.7]} 49. Nf5+ {[%clk 0:00:05]} 49... Kf7 {[%clk
0:01:17.4]} 50. Rh6 {[%clk 0:00:04.7]} 50... h4 {[%clk 0:01:17.9]} 51. Nd6+
{[%clk 0:00:03.7]} 51... Kg7 {[%clk 0:01:18.5]} 52. Nf5+ {[%clk 0:00:04.3]}
52... Kf7 {[%clk 0:01:19]} 53. Ke4 {[%clk 0:00:04]} 53... Re2+ {[%clk
0:01:18.8]} 54. Ne3 {[%clk 0:00:03.5]} 54... Kg7 {[%clk 0:01:18.5]} 55. Rh5
{[%clk 0:00:02.1]} 55... Kg6 {[%clk 0:01:18.9]} 56. Rh8 {[%clk 0:00:02.3]} 56...
Re1 {[%clk 0:01:19.6]} 57. Kd3 {[%clk 0:00:02.2]} 57... Rh1 {[%clk 0:01:16.5]}
58. Ng4 {[%clk 0:00:02]} 58... Ra1 {[%clk 0:01:10.3]} 59. Rg8+ {[%clk
0:00:02.3]} 59... Kf5 {[%clk 0:01:10.4]} 60. Ne3+ {[%clk 0:00:02]} 60... Kf4
{[%clk 0:01:09.9]} 61. Rf8+ {[%clk 0:00:02.5]} 61... Kg3 {[%clk 0:01:10.5]} 62.
Rf5 {[%clk 0:00:01.6]} 62... Ra3+ {[%clk 0:01:08.5]} 63. Ke2 {[%clk 0:00:01.4]}
63... Ra2+ {[%clk 0:01:09.1]} 64. Ke1 {[%clk 0:00:01.3]} 64... h3 {[%clk
0:01:08.1]} 65. Rxg5+ {[%clk 0:00:01.7]} 65... Kf4 {[%clk 0:01:08.9]} 66. Rh5
{[%clk 0:00:01.2]} 66... Kxe3 {[%clk 0:01:09.2]} 67. Kd1 {[%clk 0:00:01.3]}
67... h2 {[%clk 0:01:08.9]} 68. f4 {[%clk 0:00:01.9]} 68... h1=Q+ {[%clk
0:01:05.5]} 0-1

[Event "Late-Titled-Tuesday-Blitz-June-18-2024"]
[Site "Chess.com"]
[Date "2024.06.18"]
[Round "8"]
[White "Chaubunagungamaug1"]
[Black "rionelG"]
[Result "1-0"]
[WhiteElo "2480"]
[BlackElo "2350"]
[TimeControl "180+1"]
[EndTime "15:29:38 PDT"]
[Termination "Chaubunagungamaug1 won by checkmate"]

1. d4 {[%clk 0:02:56.6]} 1... Nf6 {[%clk 0:02:59.1]} 2. c4 {[%clk 0:02:53.1]}
2... g6 {[%clk 0:02:59.2]} 3. Nc3 {[%clk 0:02:52.6]} 3... Bg7 {[%clk 0:02:59.8]}
4. Nf3 {[%clk 0:02:52.5]} 4... d6 {[%clk 0:02:58.9]} 5. Bg5 {[%clk 0:02:52.6]}
5... h6 {[%clk 0:02:56.1]} 6. Bh4 {[%clk 0:02:51.5]} 6... g5 {[%clk 0:02:51.9]}
7. Bg3 {[%clk 0:02:51.1]} 7... Nh5 {[%clk 0:02:52.1]} 8. e3 {[%clk 0:02:48.9]}
8... Nd7 {[%clk 0:02:45.8]} 9. Be2 {[%clk 0:02:46.9]} 9... c5 {[%clk 0:02:43.1]}
10. Qc2 {[%clk 0:02:42.3]} 10... Nxg3 {[%clk 0:02:33.9]} 11. hxg3 {[%clk
0:02:41.5]} 11... e6 {[%clk 0:02:23.9]} 12. Rd1 {[%clk 0:02:37]} 12... Qe7
{[%clk 0:02:15]} 13. O-O {[%clk 0:02:26.3]} 13... b6 {[%clk 0:02:12.5]} 14. a3
{[%clk 0:02:20.6]} 14... O-O {[%clk 0:02:10.3]} 15. b4 {[%clk 0:02:12.3]} 15...
Bb7 {[%clk 0:02:09]} 16. Qa4 {[%clk 0:02:02.5]} 16... Rfd8 {[%clk 0:02:01.7]}
17. Rd2 {[%clk 0:01:58.4]} 17... Nf6 {[%clk 0:01:53.9]} 18. Rfd1 {[%clk
0:01:55.7]} 18... cxd4 {[%clk 0:01:32.1]} 19. Nxd4 {[%clk 0:01:49]} 19... d5
{[%clk 0:01:31.5]} 20. Qb3 {[%clk 0:01:18.3]} 20... Rac8 {[%clk 0:01:27.9]} 21.
Qa2 {[%clk 0:01:06.4]} 21... dxc4 {[%clk 0:00:51]} 22. Bxc4 {[%clk 0:00:57.6]}
22... Ne4 {[%clk 0:00:48.7]} 23. Nxe4 {[%clk 0:00:55.2]} 23... Bxe4 {[%clk
0:00:49.6]} 24. Nxe6 {[%clk 0:00:37.7]} 24... Rxd2 {[%clk 0:00:30.7]} 25. Rxd2
{[%clk 0:00:31.3]} 25... Rxc4 {[%clk 0:00:20.2]} 26. Rd8+ {[%clk 0:00:21]} 26...
Kh7 {[%clk 0:00:19.6]} 27. Qxc4 {[%clk 0:00:20]} 27... Qxe6 {[%clk 0:00:19.8]}
28. Qxe6 {[%clk 0:00:17.4]} 28... fxe6 {[%clk 0:00:19.5]} 29. Rd7 {[%clk
0:00:17.8]} 29... Kg6 {[%clk 0:00:18.8]} 30. Rxa7 {[%clk 0:00:17.3]} 30... Bb2
{[%clk 0:00:18.3]} 31. a4 {[%clk 0:00:17.1]} 31... Bc3 {[%clk 0:00:18]} 32. f3
{[%clk 0:00:16.2]} 32... Bd3 {[%clk 0:00:16]} 33. a5 {[%clk 0:00:10]} 33... bxa5
{[%clk 0:00:15.5]} 34. bxa5 {[%clk 0:00:10.9]} 34... Kf6 {[%clk 0:00:15.5]} 35.
Kf2 {[%clk 0:00:10.4]} 35... h5 {[%clk 0:00:14.3]} 36. Ra8 {[%clk 0:00:09.2]}
36... Bc4 {[%clk 0:00:11.8]} 37. a6 {[%clk 0:00:08.2]} 37... Be5 {[%clk
0:00:10.6]} 38. Rf8+ {[%clk 0:00:05.8]} 38... Ke7 {[%clk 0:00:10.3]} 39. a7
{[%clk 0:00:06.7]} 39... Kxf8 {[%clk 0:00:07.6]} 40. a8=Q+ {[%clk 0:00:07]}
40... Ke7 {[%clk 0:00:06.6]} 41. Qb7+ {[%clk 0:00:06.5]} 41... Kf6 {[%clk
0:00:06.5]} 42. Qc6 {[%clk 0:00:06.6]} 42... Bd5 {[%clk 0:00:06.6]} 43. Qe8
{[%clk 0:00:07.2]} 43... h4 {[%clk 0:00:04.4]} 44. gxh4 {[%clk 0:00:07.1]} 44...
gxh4 {[%clk 0:00:04.7]} 45. f4 {[%clk 0:00:07.6]} 45... Bd6 {[%clk 0:00:04.4]}
46. Qh8+ {[%clk 0:00:07]} 46... Kf5 {[%clk 0:00:03.9]} 47. Qh5+ {[%clk 0:00:07]}
47... Ke4 {[%clk 0:00:04.5]} 48. Qxh4 {[%clk 0:00:06.6]} 48... Bc5 {[%clk
0:00:04.9]} 49. Qh7# {[%clk 0:00:06.9]} 1-0